fUST/lending_fUST_20250626
["ID","MTS","AMOUNT","RATE_DAILY","PERIOD"]
[367616230,1750875058222,-4865.38270491,0.00019107,2]
[367616231,1750875058231,-1000.0,0.00019123,2]
[367616232,1750875058240,-1000.0,0.00019123,2]
[367616233,1750875058250,-1000.0,0.00019123,2]
[367616234,1750875058260,-1000.0,0.00019123,2]
[367616235,1750875058269,-1000.0,0.00019123,2]
[367616236,1750875058280,-1000.0,0.00019123,2]
[367616237,1750875058290,-1000.0,0.00019123,2]
[367616238,1750875058299,-1000.0,0.00019123,2]
[367616239,1750875058309,-1000.0,0.00019123,2]
[367616240,1750875058318,-599.96,0.00019123,2]
[367616241,1750875058327,-1774.36,0.00019177,2]
[367616242,1750875058336,-460.0,0.00019177,2]
[367616243,1750875058346,-1067.85,0.00019177,2]
[367616244,1750875058355,-1894.0,0.00019177,2]
[367616245,1750875058364,-460.0,0.00019177,2]
[367616246,1750875058373,-531.84,0.00019177,2]
[367616247,1750875058382,-5355.52,0.00019177,2]
[367616248,1750875058392,-1378.42,0.00019177,2]
[367616249,1750875058402,-1835.32,0.00019177,2]
[367616250,1750875058411,-1274.51,0.00019177,2]
[367616251,1750875058420,-460.0,0.00019177,2]
[367616252,1750875058429,-151.0,0.00019178,2]
[367616253,1750875058439,-151.0,0.00019178,2]
[367616254,1750875058448,-460.0,0.00019178,2]
[367616255,1750875058457,-460.0,0.00019178,2]
[367616256,1750875058466,-177.838232,0.00019178,2]
[367616257,1750875058475,-177.838232,0.00019178,2]
[367616258,1750875058485,-460.0,0.00019178,2]
[367616259,1750875058495,-764.86,0.00019178,2]
[367616260,1750875058504,-151.0,0.00019178,2]
[367616261,1750875058515,-603.24,0.00019178,2]
[367616262,1750875058525,-460.0,0.00019178,2]
[367616263,1750875058534,-1145.21,0.00019178,2]
[367616264,1750875058543,-151.0,0.00019178,2]
[367616265,1750875058552,-460.0,0.00019178,2]
[367616266,1750875058562,-581.78,0.00019178,2]
[367616267,1750875058571,-460.0,0.00019178,2]
[367616268,1750875058580,-173.123446,0.00019178,2]
[367616269,1750875058590,-460.0,0.00019178,2]
[367616270,1750875058599,-460.0,0.00019178,2]
[367616271,1750875058608,-460.0,0.00019178,2]
[367616272,1750875058742,-460.0,0.00019178,2]
[367616273,1750875058752,-1055.3,0.00019178,2]
[367616274,1750875058762,-460.0,0.00019178,2]
[367616275,1750875058771,-679.73,0.00019178,2]
[367616276,1750875058780,-3048.64,0.00019178,2]
[367616277,1750875058790,-601.48,0.00019178,2]
[367616278,1750875058799,-460.0,0.00019178,2]
[367616279,1750875058807,-460.0,0.00019178,2]
[367616280,1750875058817,-559.06,0.00019178,2]
[367616281,1750875058826,-883.76,0.00019178,2]
[367616282,1750875058835,-2956.48,0.00019178,2]
[367616283,1750875058845,-606.24,0.00019178,2]
[367616284,1750875058854,-723.91,0.00019178,2]
[367616285,1750875058864,-521.58,0.00019178,2]
[367616286,1750875058873,-671.7,0.00019178,2]
[367616287,1750875058882,-4109.17,0.00019178,2]
[367616288,1750875058892,-578.58,0.00019178,2]
[367616289,1750875058902,-2506.69,0.00019178,2]
[367616290,1750875058912,-460.0,0.00019178,2]
[367616291,1750875058921,-460.0,0.00019178,2]
[367616292,1750875058930,-458.0,0.00019178,2]
[367616293,1750875058940,-1334.99,0.00019178,2]
[367616294,1750875058949,-669.22,0.00019178,2]
[367616295,1750875058958,-522.95,0.00019178,2]
[367616296,1750875058969,-3115.94,0.00019178,2]
[367616297,1750875058979,-460.0,0.00019178,2]
[367616298,1750875058989,-294.0795407,0.00019178,2]
[367616299,1750875058999,-292.16,0.00019178,2]
[367616300,1750875059009,-509.29,0.00019178,2]
[367616301,1750875059019,-460.0,0.00019178,2]
[367616302,1750875059028,-460.0,0.00019178,2]
[367616303,1750875059038,-675.13,0.00019178,2]
[367616304,1750875059048,-460.0,0.00019178,2]
[367616305,1750875059058,-151.0,0.00019178,2]
[367616306,1750875059069,-460.0,0.00019178,2]
[367616307,1750875059079,-4317.43,0.00019178,2]
[367616308,1750875059088,-1381.31,0.00019178,2]
[367616309,1750875059097,-556.94,0.00019178,2]
[367616310,1750875059107,-1467.85,0.00019178,2]
[367616311,1750875059116,-460.0,0.00019178,2]
[367616312,1750875059125,-1472.1,0.00019178,2]
[367616313,1750875059134,-556.15,0.00019178,2]
[367616314,1750875059143,-2321.22,0.00019178,2]
[367616315,1750875059154,-541.67,0.00019178,2]
[367616316,1750875059163,-779.22,0.00019178,2]
[367616317,1750875059172,-744.35,0.00019178,2]
[367616318,1750875059181,-3336.47,0.00019178,2]
[367616319,1750875059191,-773.1,0.00019178,2]
[367616320,1750875059199,-571.5,0.00019178,2]
[367616321,1750875059209,-588.76,0.00019178,2]
[367616322,1750875059218,-607.30519,0.00019178,2]
[367616323,1750875059228,-151.0,0.00019205,2]
[367616324,1750875059237,-151.0,0.00019233,2]
[367616325,1750875059246,-151.0,0.0001926,2]
[367616326,1750875059256,-151.0,0.00019278,2]
[367616327,1750875059265,-221.08082616,0.00019288,2]
[367616328,1750875059274,-170.5,0.00019301,3]
[367616329,1750875059284,-151.0,0.00019316,2]
[367616330,1750875059294,-189.870626,0.00019329,2]
[367616331,1750875059303,-151.0,0.00019329,2]
[367616332,1750875059313,-7136.4157538,0.00019329,2]
[367616333,1750875059322,-4865.38270491,0.00019383,2]
[367616334,1750875059332,-206.464079,0.00019383,2]
[367616335,1750875059341,-206.464079,0.00019383,2]
[367616336,1750875059350,-500.0,0.00019395,2]
[367616337,1750875059359,-500.0,0.00019395,2]
[367616338,1750875059368,-151.0,0.00019422,2]
[367616339,1750875059378,-151.0,0.00019422,2]
[367616340,1750875059387,-151.0,0.00019422,2]
[367616341,1750875059396,-151.0,0.00019422,2]
[367616342,1750875059405,-1774.36,0.00019451,2]
[367616343,1750875059414,-460.0,0.00019451,2]
[367616344,1750875059423,-1067.85,0.00019451,2]
[367616345,1750875059432,-1894.0,0.00019451,2]
[367616346,1750875059442,-460.0,0.00019451,2]
[367616347,1750875059451,-531.84,0.00019451,2]
[367616348,1750875059461,-5355.52,0.00019451,2]
[367616349,1750875059473,-1378.42,0.00019451,2]
[367616350,1750875059485,-1835.32,0.00019451,2]
[367616351,1750875059494,-1274.51,0.00019451,2]
[367616352,1750875059503,-460.0,0.00019451,2]
[367616353,1750875059513,-176.128063,0.00019452,2]
[367616354,1750875059523,-286.87196,0.00019452,2]
[367616355,1750875059542,-151.0,0.00019452,2]
[367616356,1750875059557,-151.0,0.00019452,2]
[367616357,1750875059566,-259.647746,0.00019452,2]
[367616358,1750875059575,-460.0,0.00019452,2]
[367616359,1750875059584,-460.0,0.00019452,2]
[367616360,1750875059594,-248.740879,0.00019452,2]
[367616361,1750875059604,-460.0,0.00019452,2]
[367616362,1750875059613,-151.0,0.00019452,2]
[367616363,1750875059622,-151.0,0.00019452,2]
[367616364,1750875059631,-151.0,0.00019452,2]
[367616365,1750875059640,-764.86,0.00019452,2]
[367616366,1750875059650,-603.24,0.00019452,2]
[367616367,1750875059659,-460.0,0.00019452,2]
[367616368,1750875059668,-1145.21,0.00019452,2]
[367616369,1750875059678,-460.0,0.00019452,2]
[367616370,1750875059687,-581.78,0.00019452,2]
[367616371,1750875059697,-475.01669004,0.00019452,2]
[367616372,1750875059707,-460.0,0.00019452,2]
[367616373,1750875059716,-460.0,0.00019452,2]
[367616374,1750875059725,-460.0,0.00019452,2]
[367616375,1750875059734,-460.0,0.00019452,2]
[367616376,1750875059743,-1055.3,0.00019452,2]
[367616377,1750875059753,-460.0,0.00019452,2]
[367616378,1750875059762,-679.73,0.00019452,2]
[367616379,1750875059771,-3048.64,0.00019452,2]
[367616380,1750875059780,-601.48,0.00019452,2]
[367616381,1750875059789,-460.0,0.00019452,2]
[367616382,1750875059799,-460.0,0.00019452,2]
[367616383,1750875059808,-559.06,0.00019452,2]
[367616384,1750875059817,-883.76,0.00019452,2]
[367616385,1750875059826,-2956.48,0.00019452,2]
[367616386,1750875059835,-606.24,0.00019452,2]
[367616387,1750875059845,-723.91,0.00019452,2]
[367616388,1750875059854,-521.58,0.00019452,2]
[367616389,1750875059863,-671.7,0.00019452,2]
[367616390,1750875059872,-4109.17,0.00019452,2]
[367616391,1750875059882,-578.58,0.00019452,2]
[367616392,1750875059891,-2506.69,0.00019452,2]
[367616393,1750875059900,-1334.99,0.00019452,2]
[367616394,1750875059909,-669.22,0.00019452,2]
[367616395,1750875059919,-522.95,0.00019452,2]
[367616396,1750875059929,-3115.94,0.00019452,2]
[367616397,1750875059939,-460.0,0.00019452,2]
[367616398,1750875059950,-509.29,0.00019452,2]
[367616399,1750875059959,-322.93933351,0.00019452,2]
[367616400,1750875059968,-460.0,0.00019452,2]
[367616401,1750875059978,-675.13,0.00019452,2]
[367616402,1750875059987,-460.0,0.00019452,2]
[367616403,1750875059997,-466.68067242,0.00019452,2]
[367616404,1750875060007,-478.93536711,0.00019452,2]
[367616405,1750875060403,-1580.85,0.00019452,2]
[367616406,1750875493791,5000.0,0.000161,2]
[367616407,1750875509688,1235.44775425,0.000161,2]
[367616408,1750875509710,3764.55224575,0.000161,2]
[367616409,1750875525378,5000.0,0.000161,2]
[367616410,1750875549631,2087.1298384,0.00015823,2]
[367616411,1750875585755,5000.0,0.00016,2]
[367616417,1750875732765,4148.31791585,0.000161,2]
[367616418,1750875732799,851.68208415,0.000161,2]
[367616420,1750875748186,5000.0,0.000161,2]
[367616421,1750875762729,5235.0349482,0.00015506,2]
[367616422,1750875769764,2791.2760198,0.000161,2]
[367616423,1750875832311,5000.0,0.000161,2]
[367616424,1750875838419,290.0710033,0.00015437,2]
[367616426,1750875861360,396.926618,0.00013699,2]
[367616427,1750875887694,435.00932655,0.00015436,2]
[367616428,1750875887717,20000.0,0.00015436,2]
[367616429,1750875887741,4464.99067345,0.00015436,2]
[367616433,1750875950027,3301.84523615,0.000161,2]
[367616435,1750876057128,10000.0,0.00015437,2]
[367616436,1750876086018,530.896528,0.00015437,2]
[367616447,1750876132363,872.1268995,0.00015437,2]
[367616452,1750876150644,309.98879157,0.000161,2]
[367616456,1750876178652,220.3164769,0.00015557,2]
[367616462,1750876214186,299.83539443,0.000161,2]
[367616463,1750876214208,1501.16460557,0.000161,2]
[367616464,1750876230207,187.918352,0.000161,2]
[367616491,1750876232676,-201.60578012,0.00016336,2]
[367616493,1750876232686,-986.73762305,0.00016336,2]
[367616495,1750876232695,-564.13476165,0.00016338,2]
[367616497,1750876232704,-581.62,0.00016428,3]
[367616499,1750876232714,-300.0,0.00016434,2]
[367616501,1750876232723,-186.0,0.00016434,2]
[367616504,1750876232732,-300.0,0.00016434,2]
[367616507,1750876232742,-300.0,0.00016434,2]
[367616510,1750876232752,-1200.0,0.00016434,2]
[367616513,1750876232762,-33707.78267062,0.00016435,2]
[367616515,1750876232775,-546.50562813,0.00016435,2]
[367616518,1750876232788,-41325.98580461,0.00016435,2]
[367616520,1750876232798,-157.2759432,0.00016437,2]
[367616522,1750876232810,-415.21490154,0.00016437,2]
[367616524,1750876232820,-500.0,0.00016437,2]
[367616527,1750876232831,-500.0,0.00016437,2]
[367616530,1750876232841,-569.19505227,0.00016437,2]
[367616532,1750876232850,-500.0,0.00016437,2]
[367616534,1750876232860,-500.0,0.00016437,2]
[367616536,1750876232869,-500.0,0.00016437,2]
[367616538,1750876232878,-500.0,0.00016437,2]
[367616540,1750876232887,-500.0,0.00016437,2]
[367616541,1750876232897,-500.0,0.00016437,2]
[367616543,1750876232906,-238.95882174,0.00016437,2]
[367617035,1750876238555,-500.0,0.00016434,2]
[367617037,1750876238569,-500.0,0.00016434,2]
[367617040,1750876238580,-639.63119602,0.00016434,2]
[367617042,1750876238590,-500.0,0.00016434,2]
[367617044,1750876238599,-500.0,0.00016434,2]
[367617046,1750876238609,-500.0,0.00016434,2]
[367617048,1750876238619,-500.0,0.00016434,2]
[367617050,1750876238629,-438.03246435,0.00016434,2]
[367617052,1750876238639,-500.0,0.00016434,2]
[367617054,1750876238649,-500.0,0.00016434,2]
[367617056,1750876238658,-500.0,0.00016434,2]
[367617058,1750876238671,-261.04117826,0.00016437,2]
[367617060,1750876238681,-500.0,0.00016437,2]
[367617062,1750876238690,-400.0,0.00016437,2]
[367617064,1750876238700,-500.0,0.00016437,2]
[367617066,1750876238711,-460.0,0.00016438,2]
[367617068,1750876238721,-460.0,0.00016438,2]
[367617070,1750876238731,-460.0,0.00016438,2]
[367617072,1750876238742,-460.0,0.00016438,2]
[367617074,1750876238751,-460.0,0.00016438,2]
[367617076,1750876238761,-460.0,0.00016438,2]
[367617078,1750876238771,-334.96244374,0.00016438,2]
[367617080,1750876238780,-460.0,0.00016438,2]
[367617082,1750876238790,-460.0,0.00016438,2]
[367617084,1750876238799,-460.0,0.00016438,2]
[367617086,1750876238811,-460.0,0.00016438,2]
[367617088,1750876238820,-460.0,0.00016438,2]
[367617090,1750876238830,-460.0,0.00016438,2]
[367617092,1750876238839,-460.0,0.00016438,2]
[367617094,1750876238849,-460.0,0.00016438,2]
[367617096,1750876238859,-460.0,0.00016438,2]
[367617098,1750876238868,-460.0,0.00016438,2]
[367617101,1750876238878,-460.0,0.00016438,2]
[367617103,1750876238888,-558.7,0.00016438,2]
[367617105,1750876238897,-460.0,0.00016438,2]
[367617107,1750876238907,-460.0,0.00016438,2]
[367617109,1750876238916,-460.0,0.00016438,2]
[367617111,1750876238925,-460.0,0.00016438,2]
[367617113,1750876238934,-460.0,0.00016438,2]
[367617114,1750876238943,-460.0,0.00016438,2]
[367617116,1750876238952,-460.0,0.00016438,2]
[367617118,1750876238962,-460.0,0.00016438,2]
[367617120,1750876238971,-546.46286951,0.00016438,2]
[367617122,1750876238980,-460.0,0.00016438,2]
[367617124,1750876238989,-463.00665894,0.00016438,2]
[367617126,1750876238998,-460.0,0.00016438,2]
[367617128,1750876239010,-460.0,0.00016438,2]
[367617131,1750876239020,-460.0,0.00016438,2]
[367617133,1750876239029,-460.0,0.00016438,2]
[367617135,1750876239038,-460.0,0.00016438,2]
[367617137,1750876239046,-460.0,0.00016438,2]
[367617139,1750876239055,-500.0,0.00016438,2]
[367617140,1750876239067,-500.0,0.00016438,2]
[367617142,1750876239076,-194.47245811,0.00016438,2]
[367617144,1750876239085,-167.13118451,0.00016438,2]
[367617156,1750876239184,-242.86881549,0.00016438,2]
[367617158,1750876239194,-57.01856573,0.00016438,2]
[367617160,1750876239205,-300.0,0.00016438,2]
[367617162,1750876239217,-102.98143427,0.00016438,2]
[367617164,1750876239226,-176.66188115,0.00016438,2]
[367617166,1750876239236,-460.0,0.00016438,2]
[367617168,1750876239245,-460.0,0.00016438,2]
[367617170,1750876239254,-460.0,0.00016438,2]
[367617172,1750876239263,-460.0,0.00016438,2]
[367617174,1750876239272,-591.26,0.00016438,2]
[367617176,1750876239282,-460.0,0.00016438,2]
[367617178,1750876239291,-460.0,0.00016438,2]
[367617181,1750876239302,-460.0,0.00016438,2]
[367617183,1750876239312,-460.0,0.00016438,2]
[367617185,1750876239322,-281.35521654,0.00016438,2]
[367617187,1750876239331,-460.0,0.00016438,2]
[367617189,1750876239340,-108.18696739,0.00016438,2]
[367617191,1750876239352,-351.81303261,0.00016438,2]
[367617193,1750876239362,-460.0,0.00016438,2]
[367617195,1750876239372,-460.0,0.00016438,2]
[367617197,1750876239381,-460.0,0.00016438,2]
[367617199,1750876239391,-460.0,0.00016438,2]
[367617201,1750876239400,-460.0,0.00016438,2]
[367617203,1750876239410,-590.17,0.00016438,2]
[367617205,1750876239419,-460.0,0.00016438,2]
[367617207,1750876239428,-460.0,0.00016438,2]
[367617209,1750876239437,-460.0,0.00016438,2]
[367617211,1750876239446,-460.0,0.00016438,2]
[367617213,1750876239455,-291.27438412,0.00016438,2]
[367617215,1750876239464,-460.0,0.00016438,2]
[367617217,1750876239474,-460.0,0.00016438,2]
[367617219,1750876239483,-587.75,0.00016438,2]
[367617221,1750876239492,-595.75,0.00016438,2]
[367617223,1750876239501,-460.0,0.00016438,2]
[367617225,1750876239510,-460.0,0.00016438,2]
[367617227,1750876239520,-460.0,0.00016438,2]
[367617229,1750876239529,-466.49170912,0.00016438,2]
[367617231,1750876239538,-460.0,0.00016438,2]
[367617234,1750876239548,-460.0,0.00016438,2]
[367617236,1750876239557,-460.0,0.00016438,2]
[367617238,1750876239568,-237.55222512,0.00016438,2]
[367617240,1750876239577,-460.0,0.00016438,2]
[367617242,1750876239586,-460.0,0.00016438,2]
[367617244,1750876239595,-460.0,0.00016438,2]
[367617246,1750876239605,-460.0,0.00016438,2]
[367617248,1750876239614,-460.0,0.00016438,2]
[367617250,1750876239623,-594.1928665,0.00016438,2]
[367617252,1750876239633,-460.0,0.00016438,2]
[367617254,1750876239643,-460.0,0.00016438,2]
[367617256,1750876239653,-460.0,0.00016438,2]
[367617257,1750876239665,-460.0,0.00016438,2]
[367617259,1750876239681,-671.69,0.00016438,2]
[367617261,1750876239690,-460.0,0.00016438,2]
[367617263,1750876239700,-460.0,0.00016438,2]
[367617265,1750876239709,-534.44572648,0.00016438,2]
[367617267,1750876239719,-460.0,0.00016438,2]
[367617269,1750876239729,-460.0,0.00016438,2]
[367617272,1750876239739,-460.0,0.00016438,2]
[367617273,1750876239751,-461.51018124,0.00016438,2]
[367617275,1750876239761,-460.0,0.00016438,2]
[367617277,1750876239770,-195.52314482,0.00016438,2]
[367617279,1750876239779,-460.0,0.00016438,2]
[367617281,1750876239789,-460.0,0.00016438,2]
[367617283,1750876239798,-460.0,0.00016438,2]
[367617285,1750876239807,-460.0,0.00016438,2]
[367617287,1750876239817,-460.0,0.00016438,2]
[367617289,1750876239827,-460.0,0.00016438,2]
[367617291,1750876239836,-460.0,0.00016438,2]
[367617293,1750876239845,-460.0,0.00016438,2]
[367617295,1750876239855,-460.0,0.00016438,2]
[367617297,1750876239863,-460.0,0.00016438,2]
[367617299,1750876239873,-460.0,0.00016438,2]
[367617301,1750876239883,-460.0,0.00016438,2]
[367617303,1750876239892,-592.57,0.00016438,2]
[367617305,1750876239903,-460.0,0.00016438,2]
[367617307,1750876239913,-460.0,0.00016438,2]
[367617309,1750876239923,-460.0,0.00016438,2]
[367617311,1750876239932,-460.0,0.00016438,2]
[367617313,1750876239942,-460.0,0.00016438,2]
[367617315,1750876239951,-460.0,0.00016438,2]
[367617317,1750876239960,-460.0,0.00016438,2]
[367617319,1750876239970,-460.0,0.00016438,2]
[367617321,1750876239979,-460.0,0.00016438,2]
[367617323,1750876239988,-460.0,0.00016438,2]
[367617325,1750876239998,-460.0,0.00016438,2]
[367617327,1750876240009,-460.0,0.00016438,2]
[367617330,1750876240019,-460.0,0.00016438,2]
[367617332,1750876240028,-503.42,0.00016438,2]
[367617334,1750876240037,-566.63691075,0.00016438,2]
[367617336,1750876240048,-460.0,0.00016438,2]
[367617338,1750876240057,-460.0,0.00016438,2]
[367617340,1750876240066,-500.0,0.00016438,2]
[367617342,1750876240075,-500.0,0.00016438,2]
[367617344,1750876240085,-392.74,0.00016438,2]
[367617346,1750876240094,-460.0,0.00016438,2]
[367617348,1750876240104,-460.0,0.00016438,2]
[367617350,1750876240112,-460.0,0.00016438,2]
[367617352,1750876240121,-460.0,0.00016438,2]
[367617354,1750876240130,-460.0,0.00016438,2]
[367617356,1750876240140,-460.0,0.00016438,2]
[367617358,1750876240149,-460.0,0.00016438,2]
[367617360,1750876240158,-460.0,0.00016438,2]
[367617362,1750876240167,-460.0,0.00016438,2]
[367617364,1750876240176,-460.0,0.00016438,2]
[367617366,1750876240186,-460.0,0.00016438,2]
[367617368,1750876240195,-460.0,0.00016438,2]
[367617370,1750876240203,-460.0,0.00016438,2]
[367617372,1750876240213,-460.0,0.00016438,2]
[367617374,1750876240226,-278.98,0.00016438,2]
[367617376,1750876240236,-345.11785581,0.00016438,2]
[367617378,1750876240245,-460.0,0.00016438,2]
[367617380,1750876240254,-460.0,0.00016438,2]
[367617382,1750876240264,-460.0,0.00016438,2]
[367617384,1750876240273,-460.0,0.00016438,2]
[367617386,1750876240283,-460.0,0.00016438,2]
[367617388,1750876240292,-460.0,0.00016438,2]
[367617390,1750876240302,-313.05496491,0.00016438,2]
[367617391,1750876240313,-460.0,0.00016438,2]
[367617392,1750876240323,-460.0,0.00016438,2]
[367617393,1750876240332,-460.0,0.00016438,2]
[367617394,1750876240341,-460.0,0.00016438,2]
[367617395,1750876240351,-577.06,0.00016438,2]
[367617396,1750876240361,-460.0,0.00016438,2]
[367617397,1750876240370,-460.0,0.00016438,2]
[367617398,1750876240380,-460.0,0.00016438,2]
[367617400,1750876240390,-460.0,0.00016438,2]
[367617401,1750876240400,-541.28,0.00016438,2]
[367617402,1750876240409,-460.0,0.00016438,2]
[367617403,1750876240419,-460.0,0.00016438,2]
[367617404,1750876240428,-460.0,0.00016438,2]
[367617405,1750876240438,-460.0,0.00016438,2]
[367617407,1750876240447,-460.0,0.00016438,2]
[367617408,1750876240457,-460.0,0.00016438,2]
[367617410,1750876240466,-460.0,0.00016438,2]
[367617412,1750876240475,-460.0,0.00016438,2]
[367617414,1750876240485,-955.37,0.00016438,2]
[367617416,1750876240494,-460.0,0.00016438,2]
[367617418,1750876240504,-460.0,0.00016438,2]
[367617420,1750876240513,-460.0,0.00016438,2]
[367617422,1750876240523,-460.0,0.00016438,2]
[367617424,1750876240532,-460.0,0.00016438,2]
[367617426,1750876240541,-460.0,0.00016438,2]
[367617428,1750876240551,-460.0,0.00016438,2]
[367617430,1750876240560,-460.0,0.00016438,2]
[367617432,1750876240570,-500.0,0.00016438,2]
[367617434,1750876240579,-630.4,0.00016438,2]
[367617436,1750876240588,-460.0,0.00016438,2]
[367617438,1750876240598,-460.0,0.00016438,2]
[367617440,1750876240607,-2200.88,0.00016438,2]
[367617442,1750876240616,-460.0,0.00016438,2]
[367617444,1750876240626,-460.0,0.00016438,2]
[367617446,1750876240635,-518.26,0.00016438,2]
[367617448,1750876240644,-460.0,0.00016438,2]
[367617450,1750876240653,-2235.17,0.00016438,2]
[367617452,1750876240663,-460.0,0.00016438,2]
[367617455,1750876240680,-3849.29,0.00016438,2]
[367617457,1750876240689,-460.0,0.00016438,2]
[367617459,1750876240699,-460.0,0.00016438,2]
[367617461,1750876240708,-602.08,0.00016438,2]
[367617463,1750876240719,-460.0,0.00016438,2]
[367617465,1750876240728,-460.0,0.00016438,2]
[367617467,1750876240737,-540.68,0.00016438,2]
[367617469,1750876240747,-460.0,0.00016438,2]
[367617471,1750876240756,-978.23,0.00016438,2]
[367617473,1750876240766,-460.0,0.00016438,2]
[367617475,1750876240775,-570.35,0.00016438,2]
[367617477,1750876240784,-925.51,0.00016438,2]
[367617479,1750876240794,-1457.29,0.00016438,2]
[367617481,1750876240803,-460.0,0.00016438,2]
[367617483,1750876240813,-460.0,0.00016438,2]
[367617485,1750876240823,-460.0,0.00016438,2]
[367617487,1750876240833,-460.0,0.00016438,2]
[367617489,1750876240842,-460.0,0.00016438,2]
[367617491,1750876240851,-460.0,0.00016438,2]
[367617493,1750876240861,-460.0,0.00016438,2]
[367617495,1750876240870,-460.0,0.00016438,2]
[367617497,1750876240879,-460.37,0.00016438,2]
[367617499,1750876240889,-460.0,0.00016438,2]
[367617501,1750876240899,-460.0,0.00016438,2]
[367617503,1750876240909,-460.0,0.00016438,2]
[367617505,1750876240918,-460.0,0.00016438,2]
[367617507,1750876240929,-460.0,0.00016438,2]
[367617509,1750876240939,-460.0,0.00016438,2]
[367617511,1750876240948,-460.0,0.00016438,2]
[367617513,1750876240957,-460.0,0.00016438,2]
[367617515,1750876240966,-460.0,0.00016438,2]
[367617517,1750876240975,-460.0,0.00016438,2]
[367617519,1750876240984,-430.0,0.00016438,2]
[367617521,1750876240993,-470.53,0.00016438,2]
[367617523,1750876241003,-460.0,0.00016438,2]
[367617525,1750876241012,-460.0,0.00016438,2]
[367617527,1750876241022,-1931.13,0.00016438,2]
[367617529,1750876241031,-460.0,0.00016438,2]
[367617531,1750876241040,-460.0,0.00016438,2]
[367617533,1750876241050,-460.0,0.00016438,2]
[367617535,1750876241060,-460.0,0.00016438,2]
[367617537,1750876241070,-460.0,0.00016438,2]
[367617539,1750876241080,-460.0,0.00016438,2]
[367617541,1750876241090,-760.14587965,0.00016438,2]
[367617544,1750876241106,-472.44525905,0.00016438,2]
[367617548,1750876241130,-94.8388613,0.00016438,2]
[367617550,1750876241140,-306.03172676,0.00016438,2]
[367617552,1750876241149,-1019.99,0.00016438,2]
[367617554,1750876241159,-460.0,0.00016438,2]
[367617556,1750876241169,-2501.37,0.00016438,2]
[367617558,1750876241179,-4078.78,0.00016438,2]
[367617560,1750876241188,-460.0,0.00016438,2]
[367617561,1750876241197,-488.57,0.00016438,2]
[367617562,1750876241207,-460.0,0.00016438,2]
[367617563,1750876241217,-460.0,0.00016438,2]
[367617564,1750876241226,-460.0,0.00016438,2]
[367617565,1750876241236,-460.0,0.00016438,2]
[367617566,1750876241246,-432.31898986,0.00016438,2]
[367617567,1750876241255,-460.0,0.00016438,2]
[367617568,1750876241264,-460.0,0.00016438,2]
[367617569,1750876241274,-460.0,0.00016438,2]
[367617570,1750876241283,-460.0,0.00016438,2]
[367617571,1750876241293,-460.0,0.00016438,2]
[367617572,1750876241302,-2759.77,0.00016438,2]